Cogmind - Beta 14 @@@ ROGUE MODE // 2025.01.12 @ 23:15:32 Player: human Result: Destroyed by H-77 Assassin with High-powered Shotgun Performance ------------- Evolutions (5) 2500 Regions Visited (11) 2200 Robots Destroyed (41) 205 Value Destroyed (1920) 1920 Prototype IDs (6) 120 Alien Tech Used (0) 0 Bonus (3977) 3977 TOTAL SCORE: 10922 Bonus ------- Pacifist 200 High Alert Combat Kills 214 Follower Combat Kills 1239 Met Warlord at Base 500 MAIN.C Attacked Warlord 500 Warlord Defense Kills 1376 Friendly Fire -52 Cogmind --------- Core Integrity 0/1000 Matter 265/300 Energy 62/100 System Corruption 3% Temperature Cool (2) Movement Flying (45) Location -4/Proximity Caves Parts ------- > --- POWER (2) -------- (None) > --- PROPULSION (6) --- Impulse Thruster Array > --- UTILITY (5) ------ Small Storage Unit Targeting Computer > --- WEAPON (4) ------- Plasma Flamer > --- INVENTORY (8) ---- Centrium Wheel Makeshift Hover Unit Tesla Rifle Wave Gun Dispersion Rifle Neutron Cannon Peak State ------------ > --- POWER ------------ Micro Fission Core Light Antimatter Reactor > --- PROPULSION ------- Cooled Gravmag System Cooled Gravmag System Combat Gravmag System Improved Antigrav System Impulse Thruster Array > --- UTILITY ---------- Advanced Heat Sink Small Storage Unit Targeting Computer Improved Core Shielding Hacking Suite > --- WEAPON ----------- Backup Laser III Neutron Cannon Heavy Gauss Cannon Advanced Remote Datajack > --- INVENTORY -------- Antigrav System Antigrav System Advanced ECM Suite Tesla Rifle Backup Laser III Wave Gun Dispersion Rifle KE Penetrator [Rating: 100] Favorites ----------- Power Reinforced Deuterium Engine Engine Reinforced Deuterium Engine Power Core Micro Fission Core Reactor Light Antimatter Reactor Propulsion Cooled Gravmag System Treads Improved Medium Treads Leg Carbon-fiber Leg Wheel Compact Wheel Hover Unit Cooled Gravmag System Flight Unit VTOL Module Utility Small Storage Unit Device Improved Heat Sink Storage Small Storage Unit Processor Improved Targeting Computer Hackware Hacking Suite Protection Improved Core Shielding Weapon Backup Laser III Energy Gun Backup Laser III Energy Cannon Neutron Cannon Ballistic Gun Improved Heavy Machine Gun Ballistic Cannon Mini Assault Cannon Launcher Heavy Rocket Launcher Special Weapon Advanced Remote Datajack Slashing Weapon Mining Claw Special Melee Weapon Improved Datajack Build | -11 -10 -9 -8 -7 -6 -6 -5 -5 -5 -5 -4 ------- Run | Yrd Mat Mat Mat Fac Fac Ext Fac Upp Upp War Pro Slots Evolved 10 | . . 2 2 2 2 . 2 . . . . Power 1 | . . . . 1 . . . . . . . Propulsion 4 | . . 2 1 1 . . . . . . . Utility 3 | . . . 1 . 2 . . . . . . Weapon 2 | . . . . . . . 2 . . . . Parts Attached 137 | 7 . 4 12 5 2 50 17 10 1 18 11 Power 13 | 1 . . 3 . . 4 . 1 . 4 . Engine 8 | 1 . . 2 . . 4 . 1 . . . Core 2 | . . . 1 . . . . . . 1 . Reactor 3 | . . . . . . . . . . 3 . Propulsion 55 | 2 . 4 2 4 . 22 8 3 . 5 5 Treads 6 | . . . . . . 6 . . . . . Leg 17 | . . . . . . 16 . 1 . . . Wheel 3 | 2 . . . . . . 1 . . . . Hover 9 | . . . . . . . 2 2 . 4 1 Flight 20 | . . 4 2 4 . . 5 . . 1 4 Utility 26 | 1 . . 4 . 2 8 4 3 . 4 . Device 10 | . . . 1 . . 4 2 1 . 2 . Storage 4 | 1 . . . . . 1 1 1 . . . Processor 3 | . . . 1 . 1 . . . . 1 . Hackware 4 | . . . 2 . 1 . 1 . . . . Protection 5 | . . . . . . 3 . 1 . 1 . Artifact . | . . . . . . . . . . . . Weapon 43 | 3 . . 3 1 . 16 5 3 1 5 6 Energy Gun 12 | 1 . . 2 . . 3 2 1 1 . 2 Energy Cannon 3 | . . . . . . . 1 1 . 1 . Ballistic Gun 7 | 2 . . . . . 3 1 . . . 1 Ballistic Cannon 6 | . . . . 1 . 3 . . . 1 1 Launcher 1 | . . . . . . . . . . 1 . Special Weapon 4 | . . . . . . . . . . 2 2 Impact Weapon . | . . . . . . . . . . . . Slashing Weapon 4 | . . . 1 . . 2 1 . . . . Piercing Weapon . | . . . . . . . . . . . . Special Melee Weapon 6 | . . . . . . 5 . 1 . . . Unidentified Prototypes 6 | . . . 2 1 . 1 2 . . . . Corrupted Parts 1 | . . . . . . 1 . . . . . System Corruption 8 | . . . . . . 8 . . . . . Parts Lost 75 | . . 3 2 5 . 27 14 3 . 10 11 Power 8 | . . . 1 . . 3 1 1 . 1 1 Propulsion 38 | . . 2 . 4 . 16 7 1 . 3 5 Utility 15 | . . 1 . . . 6 3 . . 3 2 Weapon 14 | . . . 1 1 . 2 3 1 . 3 3 Highest Loss Streak 15 | . . 3 1 3 . 9 10 2 . 6 15 To Critical Strikes . | . . . . . . . . . . . . Average Slot Usage (%) 76 | . 100 77 95 81 81 86 81 55 57 80 28 Engine 5 | . 14 11 4 . . 10 8 . . 1 . Core 1 | . . . 3 7 6 . . . . 2 . Treads 3 | . . . . . . 11 . . . . . Leg 7 | . . . . . . 18 20 . . . . Wheel 1 | . 28 12 . . . . 3 . . . . Hover 9 | . . . . . . . . 16 23 26 2 Flight 6 | . . 14 44 36 33 1 1 2 . . 5 Device 5 | . . . 6 . . 9 . 10 5 5 . Storage 7 | . 14 11 9 7 6 5 4 5 11 9 5 Processor 3 | . . . 5 . 4 6 4 . . 1 5 Hackware 4 | . . . 2 15 17 4 4 5 5 5 . Protection 3 | . 14 6 . . . 2 7 4 5 3 . Energy Gun 4 | . 14 11 10 5 . 1 8 . 4 5 . Ballistic Gun 1 | . 14 11 . . . 1 4 . . . 3 Ballistic Cannon 2 | . . . . 1 6 5 . . . 2 . Slashing Weapon 1 | . . . 6 7 6 . 2 . . . . Special Melee Weapon 1 | . . . . . . 2 2 . . . . Peak Build Rating 100 | 6 7 9 26 28 33 57 66 63 49 100 66 Average Rating 48 | 3 6 7 22 24 31 45 54 49 48 72 31 On Entrance 29 | . 6 7 9 24 28 33 57 40 43 49 53 Naked Turns . | . . . . . . . . . . . . Heaviest Build 60 | 12 13 13 18 16 16 54 60 21 14 53 32 Greatest Support 110 | 32 32 32 21 21 20 110 105 44 32 70 41 Greatest Overweight (x) 9 | . . 2 . 1 . 9 2 . . 1 . Average Overweight (x) . | . . . . . . . . . . . . Largest Inventory Capacity 10 | 8 8 8 8 8 8 10 10 8 8 8 8 Average Capacity 7 | 5 8 8 8 8 8 8 8 5 8 8 8 Most Carried 10 | 5 2 5 8 8 8 10 10 8 8 8 8 Average Carried 6 | 2 2 2 7 6 7 6 8 4 8 7 5 Final Capacity 10 | 8 8 8 8 8 8 10 5 8 8 8 8 Final Carried 10 | 2 2 5 8 8 7 10 5 8 8 8 6 Class Distribution -------------------- 33% | Mutant 22% | Scavenger-Mutant 12% | Scavenger-Gunner 8% | Scavenger-Tank 5% | Hacker-Sprinter 5% | Sprinter 5% | Hacker-Mutant 4% | Tank Dominant Class ---------------- Mutant | -10/Materials Mutant | -9/Materials Sprinter | -8/Materials Hacker-Sprinter | -7/Factory Hacker-Sprinter | -6/Factory Scavenger-Mutant | -6/Extension Scavenger-Tank | -5/Factory Mutant | -5/Upper Caves Mutant | -5/Upper Caves Scavenger-Gunner | -5/Warlord Mutant | -4/Proximity Caves Resources | -11 -10 -9 -8 -7 -6 -6 -5 -5 -5 -5 -4 ----------- Run | Yrd Mat Mat Mat Fac Fac Ext Fac Upp Upp War Pro Matter Collected 1960 | 181 . 161 . . 135 700 124 131 10 419 99 Remotely 162 | . . . . . . 162 . . . . . Salvage Created 1472 | . . 116 . . . 678 308 49 . 321 . Parts 85 | . . 15 . . . 33 17 4 . 16 . Haulers Intercepted . | . . . . . . . . . . . . Recyclers Shooed . | . . . . . . . . . . . . Parts Field Recycled . | . . . . . . . . . . . . Retrieved Matter . | . . . . . . . . . . . . Parts Self-Destructed 2 | . . . . . . . . 2 . . . Prevented . | . . . . . . . . . . . . Kills | -11 -10 -9 -8 -7 -6 -6 -5 -5 -5 -5 -4 ------- Run | Yrd Mat Mat Mat Fac Fac Ext Fac Upp Upp War Pro Combat Hostiles Destroyed 40 | . . 7 . . . 14 8 1 . 10 . Melee 3 | . . . . . . . 3 . . . . Guns 17 | . . 7 . . . 5 5 . . . . Cannons 15 | . . . . . . 7 . 1 . 7 . AOE 3 | . . . . . . . . . . 3 . Classes Destroyed 12 | . . 1 . . . 6 1 1 . 3 . Worker 1 | . . . . . . . 1 . . . . Swarmer 14 | . . 7 . . . 2 5 . . . . Saboteur 1 | . . . . . . 1 . . . . . Grunt 9 | . . . . . . 4 2 . . 3 . Brawler 1 | . . . . . . . . . . 1 . Duelist 1 | . . . . . . 1 . . . . . Sentry 4 | . . . . . . 3 1 . . . . Specialist 1 | . . . . . . . . . . 1 . Hunter 4 | . . . . . . 2 . . . 2 . Programmer 3 | . . . . . . . . 1 . 2 . Behemoth 1 | . . . . . . 1 . . . . . Executioner 1 | . . . . . . . . . . 1 . Best Kill Streak 7 | . . 7 . . . 3 7 1 . 5 . Combat Bots Only 7 | . . 7 . . . 3 6 1 . 5 . Max Kills in Single Turn 2 | . . 1 . . . 1 2 1 . 1 . Gunslinging . | . . . . . . . . . . . . Exploded 1 | . . . . . . . . . . 1 . Melee 1 | . . . . . . . 1 . . . . Uniques/NPCs Destroyed . | . . . . . . . . . . . . Combat | -11 -10 -9 -8 -7 -6 -6 -5 -5 -5 -5 -4 -------- Run | Yrd Mat Mat Mat Fac Fac Ext Fac Upp Upp War Pro Hostile Shots Fired 872 | . 11 55 58 63 9 302 129 31 . 92 122 Missed 348 | . 4 18 34 26 8 104 53 11 . 36 54 Damage Taken 8123 | . 52 307 286 338 5 2852 1473 388 . 1397 1025 Core 1745 | . 6 66 51 123 . 494 324 116 . 256 309 Absorbed by Shields 407 | . . . . 50 . 357 . . . . . Redirected to Shielding 100 | . . . . . . . . 37 . 63 . Ignored by Resistances 27 | . . . . . . 5 22 . . . . Regen/Repaired (Parts) 31 | . . . . . . . . . . 31 . Core Remaining (%) 82 | 100 97 83 90 82 . 41 . . . . . Volleys Fired 123 | . . 11 . 3 . 50 10 7 . 34 8 Largest 3 | . . 2 . 1 . 2 3 1 . 3 3 Hottest 191 | . . 60 . 65 . 135 176 90 . 191 138 Shots Fired 245 | . . 22 . 3 . 91 22 7 . 85 15 Gun 134 | . . 22 . 3 . 51 22 . . 26 10 Cannon 100 | . . . . . . 40 . 7 . 48 5 Launcher 3 | . . . . . . . . . . 3 . Special 8 | . . . . . . . . . . 8 . Kinetic 98 | . . 11 . . . 42 10 . . 23 12 Thermal 109 | . . . . 3 . 34 12 7 . 51 2 Explosive 3 | . . . . . . . . . . 3 . Electromagnetic 27 | . . 11 . . . 15 . . . . 1 Robot Hit Streak 36 | . . 5 . 4 . 36 7 2 . 16 4 Robot Miss Streak 5 | . . 2 . 2 . 3 5 2 . 4 3 Penetration Max . | . . . . . . . . . . . . Secondary Targets 4 | . . 1 . . . 2 1 . . . . Max Gunslinging Chain 1 | . . 1 . . . 1 1 . . . . Shots Hit Robots 229 | . . 12 . 3 . 124 22 4 . 56 8 Core Hits 98 | . . 7 . 2 . 46 13 1 . 27 2 Critical Kills . | . . . . . . . . . . . . Critical Parts Destroyed . | . . . . . . . . . . . . Critical Strikes 10 | . . . . . . 4 1 . . 4 1 Burn 2 | . . . . . . 1 1 . . . . Blast 7 | . . . . . . 2 . . . 4 1 Sever 1 | . . . . . . 1 . . . . . Melee Attacks 70 | . . . 8 . . 49 12 1 . . . Impact . | . . . . . . . . . . . . Slashing 29 | . . . 8 . . 9 12 . . . . Piercing . | . . . . . . . . . . . . Sneak Attacks 38 | . . . . . . 38 . . . . . Combat Hostiles . | . . . . . . . . . . . . Follow-up Attacks . | . . . . . . . . . . . . Damage Inflicted 5443 | . . 150 . 51 . 2207 572 189 . 2137 137 Guns 1967 | . . 150 . 51 . 1101 356 . . 233 76 Cannons 2391 | . . . . . . 858 . 189 . 1283 61 Explosions 621 | . . . . . . . . . . 621 . Melee 464 | . . . . . . 248 216 . . . . Ramming . | . . . . . . . . . . . . Kinetic 1895 | . . 115 . . . 896 201 . . 546 137 Thermal 2303 | . . . . 51 . 938 155 189 . 970 . Explosive 621 | . . . . . . . . . . 621 . Electromagnetic 160 | . . 35 . . . 125 . . . . . Impact . | . . . . . . . . . . . . Slashing 464 | . . . . . . 248 216 . . . . Piercing . | . . . . . . . . . . . . Highest Corruption 9 | . . . . 3 . 9 . 2 2 3 3 Average Corruption 3 | . . . . 2 . 8 . 1 2 1 3 Corruption Purged . | . . . . . . . . . . . . Corruption Blocked . | . . . . . . . . . . . . Effects 24 | . . . . 2 . 8 . 2 1 2 9 Message Errors 3 | . . . . . . 1 . . . . 2 Matter Fused 6 | . . . . . . 3 . 1 . . 2 Heat Flow Errors 7 | . . . . 1 . 2 . 1 . 1 2 Energy Discharges 1 | . . . . . . 1 . . . . . Parts Rejected 1 | . . . . . . . . . . . 1 Data Loss (minor) 1 | . . . . . . . . . . . 1 Data Loss (major) 1 | . . . . 1 . . . . . . . Alerts 2 | . . . . . . 1 . . 1 . . Weapon Failures 2 | . . . . . . . . . . 1 1 Overload Shots . | . . . . . . . . . . . . Overflow Damage 50 | . . . . . . 30 . 8 . 12 . Projectiles 38 | . . . . . . 30 . 8 . . . Explosions 12 | . . . . . . . . . . 12 . Melee . | . . . . . . . . . . . . Knockbacks 13 | . . . . . . 6 . . . 5 2 Impact . | . . . . . . . . . . . . Kinetic 13 | . . . . . . 6 . . . 5 2 Secondary . | . . . . . . . . . . . . Self-Inflicted Damage 1 | . . . . . . . . . . 1 . Shots 1 | . . . . . . . . . . 1 . Rammed . | . . . . . . . . . . . . Targets Rammed . | . . . . . . . . . . . . Kicked . | . . . . . . . . . . . . Crushed . | . . . . . . . . . . . . Highest Temperature 444 | . . 7 36 226 5 249 425 93 . 444 170 Average Temperature 127 | . . 4 11 117 5 105 170 64 . 188 66 Received Heat Transfer 1349 | . . 6 108 32 . 807 237 . . 159 . Effects 9 | . . . . . . 1 4 . . 4 . Shutdowns 5 | . . . . . . . 2 . . 3 . Interference 2 | . . . . . . 1 1 . . . . Short Circuit 1 | . . . . . . . . . . 1 . Damage (minor) 1 | . . . . . . . 1 . . . . Siege Activations . | . . . . . . . . . . . . Robots Corrupted . | . . . . . . . . . . . . Combat Hostiles . | . . . . . . . . . . . . Parts Fried . | . . . . . . . . . . . . Impact Corruptions . | . . . . . . . . . . . . Robots Melted 2 | . . . . . . 2 . . . . . Combat Hostiles 2 | . . . . . . 2 . . . . . Parts Melted 5 | . . . . . . 5 . . . . . Heat Transferred 3117 | . . . . 50 . 2121 372 . . 574 . Parts Sabotaged 1 | . . . . . . . . . . . 1 Parts Stolen . | . . . . . . . . . . . . Parts Stripped . | . . . . . . . . . . . . Power Chain Reactions . | . . . . . . . . . . . . Alert | -11 -10 -9 -8 -7 -6 -6 -5 -5 -5 -5 -4 ------- Run | Yrd Mat Mat Mat Fac Fac Ext Fac Upp Upp War Pro Peak Influence 829 | . 20 298 196 147 86 829 696 . . . . Initial 274 | . . 8 125 82 71 42 274 . . . . Average 357 | . 4 94 133 91 74 472 474 . . . . Maximum Alert Level 3 | . . 1 . . . 3 2 . . . . Low Security (%) 36 | 100 100 90 100 100 100 15 . . . . . Level 1 11 | . . 9 . . . 14 16 . . . . Level 2 47 | . . . . . . 60 83 . . . . Level 3 4 | . . . . . . 9 . . . . . Level 4 . | . . . . . . . . . . . . Level 5 . | . . . . . . . . . . . . High Security . | . . . . . . . . . . . . Max Security . | . . . . . . . . . . . . Squads Dispatched 15 | . . 1 2 2 . 6 3 . . . 1 Investigation 5 | . . 1 1 1 . 1 1 . . . . Extermination . | . . . . . . . . . . . . Reinforcement 7 | . . . 1 1 . 4 1 . . . . Assault 3 | . . . . . . 1 1 . . . 1 Garrison . | . . . . . . . . . . . . Intercept . | . . . . . . . . . . . . Searches Triggered . | . . . . . . . . . . . . Construction Impeded 1 | . . . . . . 1 . . . . . Haulers Reinforced . | . . . . . . . . . . . . Active Scanning Responses . | . . . . . . . . . . . . Cargo Convoy Interrupts . | . . . . . . . . . . . . Stealth | -11 -10 -9 -8 -7 -6 -6 -5 -5 -5 -5 -4 --------- Run | Yrd Mat Mat Mat Fac Fac Ext Fac Upp Upp War Pro Distress Signals 8 | . 1 3 1 . . 2 1 . . . . Communications Jammed . | . . . . . . . . . . . . Distress Signals . | . . . . . . . . . . . . Times Spotted 262 | . 4 15 22 13 1 53 32 8 . 91 23 Peak Tracking Total 27 | . 4 8 9 8 2 7 12 7 . 27 17 Tactical Retreats 28 | . . 2 4 2 . 3 6 5 . 2 4 Traps | -11 -10 -9 -8 -7 -6 -6 -5 -5 -5 -5 -4 ------- Run | Yrd Mat Mat Mat Fac Fac Ext Fac Upp Upp War Pro Traps Triggered 5 | . . . . 2 . 1 2 . . . . Indirectly . | . . . . . . . . . . . . Trap Hack Attempts . | . . . . . . . . . . . . Triggered . | . . . . . . . . . . . . Disarmed . | . . . . . . . . . . . . Reprogrammed . | . . . . . . . . . . . . Reused . | . . . . . . . . . . . . Traps Extracted . | . . . . . . . . . . . . Installed . | . . . . . . . . . . . . Triggered 13 | . . . . . . . . . . 13 . Machines | -11 -10 -9 -8 -7 -6 -6 -5 -5 -5 -5 -4 ---------- Run | Yrd Mat Mat Mat Fac Fac Ext Fac Upp Upp War Pro Machines Disabled 8 | . . . . . . 2 6 . . . . Max in Single Turn . | . . . . . . . . . . . . Machines Repaired . | . . . . . . . . . . . . Machines Dismantled . | . . . . . . . . . . . . Machines Sabotaged . | . . . . . . . . . . . . Overloaded Fab Kills . | . . . . . . . . . . . . Hacking | -11 -10 -9 -8 -7 -6 -6 -5 -5 -5 -5 -4 --------- Run | Yrd Mat Mat Mat Fac Fac Ext Fac Upp Upp War Pro Machines Accessed 33 | . 2 5 6 4 . 6 3 1 . 6 . Terminals 23 | . 1 5 6 3 . 6 2 . . . . Fabricators 1 | . . . . 1 . . . . . . . Repair Stations 1 | . 1 . . . . . . . . . . Recycling Units 1 | . . . . . . . 1 . . . . Scanalyzers . | . . . . . . . . . . . . Garrison Access . | . . . . . . . . . . . . Total Hacks 77 | . 4 12 16 8 . 10 10 1 . 16 . Successful 42 | . 2 6 7 1 . 5 4 1 . 16 . Failed 35 | . 2 6 9 7 . 5 6 . . . . Catastrophic 6 | . . 3 1 1 . 1 . . . . . Database Lockouts . | . . . . . . . . . . . . Manual 27 | . . 11 10 4 . . 2 . . . . Terminals 54 | . 2 12 16 6 . 10 8 . . . . Fabricators 2 | . . . . 2 . . . . . . . Repair Stations 2 | . 2 . . . . . . . . . . Recycling Units 2 | . . . . . . . 2 . . . . Scanalyzers . | . . . . . . . . . . . . Garrison Access . | . . . . . . . . . . . . Terminal Hacks 34 | . 1 3 5 . . 5 3 1 . 16 . Record 17 | . . . . . . 1 1 . . 15 . Open Door 5 | . . . . . . 3 . 1 . 1 . Branch Access Points 2 | . . 1 1 . . . . . . . . Alert Level 1 | . . . . . . . 1 . . . . Unreport Threat 2 | . . . 1 . . 1 . . . . . Zone Layout 7 | . 1 2 3 . . . 1 . . . . Fabricator Hacks . | . . . . . . . . . . . . Repair Station Hacks 1 | . 1 . . . . . . . . . . Refit 1 | . 1 . . . . . . . . . . Recycling Unit Hacks . | . . . . . . . . . . . . Scanalyzer . | . . . . . . . . . . . . Garrison Access Hacks . | . . . . . . . . . . . . Unauthorized Hacks 7 | . . 3 2 1 . . 1 . . . . Terminals 7 | . . 3 2 1 . . 1 . . . . Botnet 7 | . . 3 2 1 . . 1 . . . . Fabricators . | . . . . . . . . . . . . Repair Stations . | . . . . . . . . . . . . Recycling Units . | . . . . . . . . . . . . Scanalyzers . | . . . . . . . . . . . . Garrison Access . | . . . . . . . . . . . . Data Cores Recovered . | . . . . . . . . . . . . Used . | . . . . . . . . . . . . Hacking Detections 23 | . 2 5 5 4 . 4 3 . . . . Full Trace Events 4 | . . 1 1 1 . . 1 . . . . Feedback Events . | . . . . . . . . . . . . Feedback Blocked . | . . . . . . . . . . . . Robot Schematics Acquired . | . . . . . . . . . . . . Robots Built . | . . . . . . . . . . . . Authchips . | . . . . . . . . . . . . Time . | . . . . . . . . . . . . Total Robot Build Rating . | . . . . . . . . . . . . Part Schematics Acquired . | . . . . . . . . . . . . Parts Built . | . . . . . . . . . . . . Authchips . | . . . . . . . . . . . . Time . | . . . . . . . . . . . . Total Part Build Rating . | . . . . . . . . . . . . Parts Repaired . | . . . . . . . . . . . . Time . | . . . . . . . . . . . . Parts Recycled . | . . . . . . . . . . . . Recycled Matter . | . . . . . . . . . . . . Retrieved Matter . | . . . . . . . . . . . . Retrieved Components . | . . . . . . . . . . . . Parts Scanalyzed . | . . . . . . . . . . . . Part Schematics Acquired . | . . . . . . . . . . . . Parts Damaged . | . . . . . . . . . . . . Bothacking | -11 -10 -9 -8 -7 -6 -6 -5 -5 -5 -5 -4 ------------ Run | Yrd Mat Mat Mat Fac Fac Ext Fac Upp Upp War Pro Used RIF Installer . | . . . . . . . . . . . . Robots Hacked 3 | . . . . . . 3 . . . . . Non-combat 1 | . . . . . . 1 . . . . . Combat 2 | . . . . . . 2 . . . . . Robot Hacks Applied 5 | . . . . . . 5 . . . . . parse_system 3 | . . . . . . 3 . . . . . no_distress 1 | . . . . . . 1 . . . . . check_alert 1 | . . . . . . 1 . . . . . Relay Couplers Released . | . . . . . . . . . . . . Fabnet Peak Effective % . | . . . . . . . . . . . . Robots Rewired 27 | . . . . . . 22 . . . 5 . Allies Hacked . | . . . . . . . . . . . . Hacks Repelled . | . . . . . . . . . . . . Allies | -11 -10 -9 -8 -7 -6 -6 -5 -5 -5 -5 -4 -------- Run | Yrd Mat Mat Mat Fac Fac Ext Fac Upp Upp War Pro Total Allies 30 | . . . . . . 25 . . . 5 . Largest Group 12 | . . . . . . 12 7 . . 5 . Highest-Rated Group 477 | . . . . . . 477 355 . . 236 . Highest-Rated Ally 159 | . . . . . . 159 153 . . 49 . Total Orders 11 | . . . . . . . . . . 11 . STAY 5 | . . . . . . . . . . 5 . FOLLOW 6 | . . . . . . . . . . 6 . Ally Attacks 305 | . . . . . . 204 65 . . 36 . Total Damage 6788 | . . . . . . 5098 986 . . 704 . Kills 41 | . . . . . . 32 7 . . 2 . Allies Corrupted . | . . . . . . . . . . . . Allies Melted . | . . . . . . . . . . . . Intel | -11 -10 -9 -8 -7 -6 -6 -5 -5 -5 -5 -4 ------- Run | Yrd Mat Mat Mat Fac Fac Ext Fac Upp Upp War Pro Robot Analysis Total . | . . . . . . . . . . . . Derelict Logs Recovered 5 | . . . . . . . . 2 1 . 2 Drone Launches . | . . . . . . . . . . . . Drone Recoveries . | . . . . . . . . . . . . Exploration | -11 -10 -9 -8 -7 -6 -6 -5 -5 -5 -5 -4 ------------- Run | Yrd Mat Mat Mat Fac Fac Ext Fac Upp Upp War Pro Turns Passed 3672 | 52 51 162 184 146 28 984 463 256 113 953 280 Spaces Moved 5005 | 46 52 223 463 408 111 515 412 479 233 1528 535 Core 18 | 17 . . . . . 1 . . . . . Treads 206 | . . . . . . 206 . . . . . Legs 508 | . . . . . . 257 251 . . . . Wheels 157 | 29 52 72 . . . . 4 . . . . Hover 2281 | . . . . . . . 27 479 233 1528 14 Flight 1835 | . . 151 463 408 111 51 130 . . . 521 Fastest Speed 23 | 50 100 29 25 23 23 23 35 38 38 33 37 Average Speed 54 | 81 100 53 25 24 23 130 89 45 45 44 44 Slowest Speed 500 | 100 100 195 29 112 23 500 122 46 46 105 48 Overloaded Moves 81 | . . . . . . . . 29 4 34 14 Propulsion Burnouts . | . . . . . . . . . . . . Robots Hopped 18 | . . 2 8 3 2 1 2 . . . . Cave-ins Triggered . | . . . . . . . . . . . . Exploration Rate (%) 41 | 5 14 28 45 17 4 76 13 77 41 92 82 Regions Visited 11 Branch Regions 5 Pre-discovered Areas 1 | . . . . . . . . . 1 . . Known Exits Taken 1 | . . . . . . . . . 1 . . Unknown Exits Taken 10 | 1 1 1 1 1 1 1 1 1 . 1 . Scrap Searched 10 | . . . . . . . . 3 3 . 4 Spaces Dug 10 | . . . 7 . . . 3 . . . . Terrain Destroyed 80 | . . . 7 . . 5 3 3 . 56 6 Melee 10 | . . . 7 . . . 3 . . . . Projectile 29 | . . . . . . 5 . 3 . 15 6 AOE 41 | . . . . . . . . . . 41 . Terrain Rammed . | . . . . . . . . . . . . Walls Destroyed . | . . . . . . . . . . . . Machines Disabled . | . . . . . . . . . . . . Actions | -11 -10 -9 -8 -7 -6 -6 -5 -5 -5 -5 -4 --------- Run | Yrd Mat Mat Mat Fac Fac Ext Fac Upp Upp War Pro Total 5616 | 59 51 240 505 448 110 697 463 508 238 1734 563 Wait 165 | . . . 4 1 . 12 . . 5 140 3 Move 4961 | 45 51 218 448 401 107 512 407 478 232 1527 535 Hop 15 | . . 2 6 3 1 1 2 . . . . Pick Up 66 | 7 . 5 14 6 . 14 7 6 . 3 4 Fast Attach 62 | 1 . 2 6 1 1 28 7 5 1 8 2 Attach 44 | 5 . 2 2 4 1 7 7 4 . 5 7 Detach 8 | . . . . . . . 1 2 . 3 2 Swap 31 | 1 . . 4 . . 15 3 1 . 5 2 Drop 43 | . . . 13 2 . 8 7 4 . 9 . Fire 123 | . . 11 . 3 . 50 10 7 . 34 8 Melee 70 | . . . 8 . . 49 12 1 . . . Ram . | . . . . . . . . . . . . Kick . | . . . . . . . . . . . . Crush . | . . . . . . . . . . . . Escape Stasis 27 | . . . . 27 . . . . . . . Rewire 1 | . . . . . . 1 . . . . . Trap . | . . . . . . . . . . . . Miscellaneous . | . . . . . . . . . . . . Route ------- -11/Scrapyard -10/Materials -9/Materials (discovered 3 exits: *Mat / *Min x2) -8/Materials (discovered 2 exits: *Fac / Sto) -7/Factory -6/Factory -6/Extension (discovered 2 exits: *Fac / [*Cet]) -5/Factory -5/Upper Caves -5/Upper Caves -5/Warlord -4/Proximity Caves History --------- Turn | Location | Event 18 | -11/Scrapyard | Discovered new exit (range 14) 53 | -11/Scrapyard | Entered Materials 89 | -10/Materials | Discovered new exit (range 15) 104 | -10/Materials | Entered another Materials area 104 | -9/Materials | Evolved 2 slots: Propulsion x2 225 | -9/Materials | Destroyed 7 combat bots 225 | -9/Materials | Discovered new exit (range 7) 230 | -9/Materials | Lost 3 parts (2n1u) 236 | -9/Materials | Identified exit to Mines 239 | -9/Materials | Discovered new exit (range 10) 266 | -9/Materials | Entered another Materials area 266 | -8/Materials | Evolved 2 slots: Propulsion x1, Utility x1 441 | -8/Materials | Discovered new exit (range 16) 448 | -8/Materials | Identified exit to Storage 450 | -8/Materials | Entered Factory 450 | -7/Factory | Evolved 2 slots: Power x1, Propulsion x1 537 | -7/Factory | Lost 3 parts (3n) 595 | -7/Factory | Discovered new exit (range 8) 596 | -7/Factory | Entered another Factory area 596 | -6/Factory | Evolved 2 slots: Utility x2 622 | -6/Factory | Discovered new exit (range 8) 624 | -6/Factory | Entered Extension 672 | -6/Extension | Lost 3 parts (1p2n) 743 | -6/Extension | Rescued A7 774 | -6/Extension | Rescued a captive Derelict 848 | -6/Extension | Lost 4 allies 850 | -6/Extension | Spotted B-75 Beast 911 | -6/Extension | Spotted B-75 Beast 928 | -6/Extension | Destroyed B-75 Beast 941 | -6/Extension | Allies destroyed B-75 Beast 970 | -6/Extension | Lost 9 parts (6n1u2w) 1000 | -6/Extension | Lost 4 allies 1143 | -6/Extension | Build established: Scavenger-Mutant 1208 | -6/Extension | Rescued a captive Derelict 1324 | -6/Extension | First assault squad dispatched 1389 | -6/Extension | Core integrity fell below 50% 1434 | -6/Extension | Lost 9 parts (1p4n4u) 1434 | -6/Extension | Lost 8 allies 1582 | -6/Extension | Discovered new exit (range 10) 1583 | -6/Extension | Discovered new exit (range 6) 1608 | -6/Extension | Entered Factory 1608 | -5/Factory | Accompanied by 7 allies (A7) 1608 | -5/Factory | Evolved 2 slots: Weapon x2 1887 | -5/Factory | Build established: Scavenger-Tank 1908 | -5/Factory | First assault squad dispatched 2018 | -5/Factory | Lost 10 parts (1p5n2u2w) 2042 | -5/Factory | Discovered new exit (range 8) 2057 | -5/Factory | Lost 3 parts (1n1u1w) 2071 | -5/Factory | Entered Upper Caves 2223 | -5/Upper Caves | Spotted B-75 Beast 2247 | -5/Upper Caves | Build established: Mutant 2255 | -5/Upper Caves | Learned Factory emergency access door positions 2275 | -5/Upper Caves | Discovered new exit (range 4) 2327 | -5/Upper Caves | Entered another Upper Caves area 2328 | -5/Upper Caves | Identified exit to Warlord 2440 | -5/Upper Caves | Entered Warlord 2452 | -5/Warlord | Discovered new exit (range 15) 2474 | -5/Warlord | System corruption cleaned by Quarantine Array 2772 | -5/Warlord | Warlord's base attacked by MAIN.C 2823 | -5/Warlord | Met Warlord 2972 | -5/Warlord | Warlord forces counterattacked 3022 | -5/Warlord | Lost 4 allies 3072 | -5/Warlord | Spotted Executioner 3072 | -5/Warlord | Spotted Striker 3072 | -5/Warlord | Spotted Executioner 3131 | -5/Warlord | Lost 13 allies 3215 | -5/Warlord | Lost 6 allies 3241 | -5/Warlord | Build established: Scavenger-Gunner 3326 | -5/Warlord | Spotted Executioner 3331 | -5/Warlord | Core integrity fell below 50% 3353 | -5/Warlord | Destroyed Executioner 3375 | -5/Warlord | Spotted Striker 3379 | -5/Warlord | Spotted Striker 3382 | -5/Warlord | Spotted Striker 3383 | -5/Warlord | Lost 3 allies 3393 | -5/Warlord | Entered Proximity Caves 3445 | -4/Proximity Caves | Core integrity fell below 20% 3483 | -4/Proximity Caves | Lost 15 parts (1p7n3u4w) 3529 | -4/Proximity Caves | Learned Research terminal intel 3572 | -4/Proximity Caves | Learned Research stockpile data 3648 | -4/Proximity Caves | Attracted the attention of an 0b10 outpost 3673 | -4/Proximity Caves | Destroyed by H-77 Assassin with High-powered Shotgun Last Messages --------------- 03648_ Y-72 Warden: "DETECTED UNIDENTIFIED DERELICT." 03652_ Y-72 Warden: "REQUESTING BACKUP." 03656_ C-30 ARC bursts open, deploying its payload. 03656_ G-73 Enforcer unfolds itself. 03656_ G-67 Veteran unfolds itself. 03656_ B-60 Warrior unfolds itself. 03656_ G-67 Veteran unfolds itself. 03656_ E-15 Imp unfolds itself. 03660_ Plasma Flamer blown off. 03660_ E-15 Imp destroyed. 03661_ Acquired Cesium-ion Thruster. 03663_ Acquired Plasma Flamer. 03666_ System corrupted: Cesium-ion Thruster rejected. 03667_ Acquired Cesium-ion Thruster. 03673_ Penetrated by Slug. 03673_ Cesium-ion Thruster destroyed. 03673_ Slug penetrates Wall. Map ----- +----------------------------------------------------+ | ????????????????????????????????????????????? | | ????????????????????????????????????????????? | | ????????????????????????????????????????????? | | ????????????????????????????????????????????? | | ????????????????????????????????????????????? | | ????????????????????????????????????????????? | | ????????????????????????????????????????????? | | ????????????????????????????????????????????? | | ????????????????????????????????????????????? | | #####?#?????????????????????????????????????? | | """"? #?????????????????????????????????????? | | ?? #??????????????????#??????????????????? | | ??? #?????????????????# ??????????????????? | | ???? ###?????????????## ??????????????????? | | ????? ##???????????? ??????????????????? | | ????? ##??????????? ??????????????????? | | ##### #??#????????# ??????????????????? | | #??# ???????# ??????????????????? | | #???# ????## ??????????????????? | | #?????# ??## ??????????????????? | | ### ###?????#?# ## #??????????????????? | | ### ##????? ### ###????????????????? | | ##?### #?# h ##???????????????? | | ## #?# #???????????????? | | ### #????? h #???????????????? | | ##?## ##????????# @ #???????????????? | | #???### #####????????## #???????????????? | | #????## #???????????## #???????????????? | | #????# ##?????????## #???????????????? | | #???## #????###??# #???????????????? | | #???# ##???# #### #???????????????? | | ????# ##?## ## ##???????????????? | | ????# ### ##????????????????? | | ????## ##?????????????????? | | ?????### ! ##??????????????????? | | ??????## $###% ##??????????????????? | | ?#??????# #?## #??????????????????? | | #???????# ##??# #??????????????????? | | ????????# #???# ##??????????????????? | | ????????# "#???# ##???????????????????? | | ????????##% ???# ##????????????????????? | | ????????? " ???## #?????????????????????? | | ?????????# ????## #?????????????????????? | | ?????????# ?????## ##?????????????????????? | | ?????????## ??????####??????????????????????? | | ??????????? ????????????????????????????????? | | ????????????????????????????????????????????? | | ????????????????????????????????????????????? | | ????????????????????????????????????????????? | | ????????????????????????????????????????????? | +----------------------------------------------------+ Best States ------------- Heat Dissipation 84 Energy Generation 31 Energy Capacity 490 Matter Stores 300 Matter Capacity 300 Sight Range 16 Terrain Scan Density 10 ECM Strength 2 Armor Coverage 450 Resistance: TH 10 Core Shielding 30 Evasion (%) 65 Targeting Accuracy 6 Recoil Reduction 4 Offensive Hacking 20 Defensive Hacking 10 Item Schematics ----------------- None Robot Schematics ------------------ None Fabricated ------------ Nothing Alien Tech Used ----------------- None Achievements -------------- A Powerful Ally? Charge!!! Prison Break Challenges ------------ None Game ------ Seed ActiveMicrowarpCapacitor Manual? 0 Play Time 02:46:34 Cumulative 64.4 hours Start 2025.01.12 @ 15:21:17 End 2025.01.12 @ 23:15:32 Sessions 5 Manual Loads 0 Difficulty Rogue Special Mode None Game No. 46 Rogue 46 Adventurer 0 Explorer 0 Win Type - Total 0 Types 0/0/0/0/0/0/0/0/0 Lore% 19 Gallery% 36 Achievement% 31 Wizard Run 0 Options --------- Layout 1 ASCII 0 Keyboard 0 Movement Mouse Keybinds 0 Fullscreen 1 Font 24/Smallcaps Map View 50x35 Zoom Use 0% Tactical HUD 1 Map Filters NONE Filters NONE Steam 1 RUN: 69f18e3a-dc98-4c78-9eec-8e24a59e700e